bitfinex-derivatives/quotes_SOLF0:USTF0_20250311
["timestamp","ask_amount","ask_price","bid_price","bid_amount"]
[1741725001319,0.05986954,126.98,126.97,51.5742499]
[1741725008026,7.8752,127.02,126.99,7.8765]
[1741725008221,11.5762499,127.05,127.0,43.6562499]
[1741725008421,7.874,127.04,127.0,43.6562499]
[1741725008630,7.874,127.04,127.01,19.4514499]
[1741725009034,7.92386772,127.04,127.01,19.50613385]
[1741725009330,7.92386772,127.04,127.02,7.8749]
[1741725009832,7.92386772,127.04,127.03,32.08]
[1741725010030,0.04986772,127.04,127.03,32.08]
[1741725010736,7.92356772,127.04,127.03,32.08]
[1741725010932,0.04986772,127.04,127.03,32.08]
[1741725012338,0.04986772,127.04,127.03,39.9543]
[1741725013337,25.7181499,127.08,127.03,43.6562499]
[1741725013530,25.7181499,127.08,127.04,7.8735]
[1741725013731,19.4477499,127.08,127.03,43.6562499]
[1741725013933,11.5762499,127.08,127.05,7.8729]
[1741725014132,19.4471499,127.09,127.06,32.08]
[1741725014335,7.8709,127.09,127.06,32.08]
[1741725014535,7.9292249,127.09,127.06,32.13370371]
[1741725015131,7.8717,127.08,127.06,32.13370371]
[1741725015934,11.6345748,127.09,127.06,32.13370371]
[1741725016139,0.0583249,127.09,127.06,43.70995361]
[1741725016637,0.0583249,127.09,127.07,11.5762499]
[1741725017437,0.0583249,127.09,127.08,11.5762499]
[1741725017940,0.0583249,127.09,127.06,43.70995361]
[1741725018134,7.8712,127.08,127.06,32.13370371]
[1741725018335,0.0583249,127.09,127.06,32.13370371]
[1741725018534,11.6345748,127.09,127.06,32.13370371]
[1741725018738,11.5762499,127.07,127.06,0.05370371]
[1741725019133,11.5762499,127.08,127.06,0.05370371]
[1741725019837,7.8718,127.07,127.06,0.05370371]
[1741725021640,19.4480499,127.07,127.06,0.05370371]
[1741725023839,7.9293249,127.09,127.06,0.05370371]
[1741725025237,0.0583249,127.09,127.07,32.04]
[1741725025442,0.0583249,127.09,127.08,11.5762499]
[1741725025735,0.0583249,127.09,127.08,19.4474499]
[1741725026337,15.7203499,127.13,127.08,19.4474499]
[1741725026543,13.6837499,127.13,127.08,19.4474499]
[1741725027140,7.8691,127.12,127.08,19.4474499]
[1741725027534,0.05606017,127.11,127.09,0.05978678]
[1741725027735,0.05606017,127.11,127.1,32.04]
[1741725028340,7.92546017,127.11,127.1,32.04]
[1741725029141,0.05606017,127.11,127.1,32.04]
[1741725029746,7.92546017,127.11,127.1,32.04]
[1741725030142,0.05606017,127.11,127.1,32.04]
[1741725030743,19.50171007,127.11,127.1,32.04]
[1741725030939,11.63231007,127.11,127.05,32.04]
[1741725031145,11.5762499,127.08,127.05,32.04]
[1741725031649,11.5762499,127.11,127.06,11.5762499]
[1741725032050,11.5762499,127.11,127.05,43.6162499]
[1741725032348,11.5762499,127.09,127.07,0.05069245]
[1741725032551,7.8717,127.08,127.07,0.05069245]
[1741725032946,0.05698434,127.1,127.07,0.05069245]
[1741725033147,7.92728434,127.1,127.07,0.05069245]
[1741725034946,11.5762499,127.09,127.07,0.05069245]
[1741725035347,11.5762499,127.08,127.07,0.05069245]
[1741725035550,19.4474499,127.08,127.07,0.05069245]
[1741725035746,11.5762499,127.08,127.0,2.0765]
[1741725036044,11.5762499,127.02,127.0,32.02]
[1741725036347,11.5762499,127.01,126.97,10.9051979]
[1741725036849,7.8771,126.99,126.98,0.05705606]
[1741725037050,7.8771,126.99,126.97,10.9051979]
[1741725037242,11.5762499,127.0,126.97,10.9051979]
[1741725037243,11.63208262,127.0,126.97,10.9570213]
[1741725037447,7.8768,126.99,126.98,32.02]
[1741725037850,0.05583272,127.0,126.98,32.02]
[1741725038649,0.05583272,127.0,126.99,7.8768]
[1741725038846,4.0253,127.07,126.99,18.08476588]
[1741725039650,4.0253,127.07,127.02,7.8745]
[1741725039848,4.0253,127.07,127.03,32.02]
[1741725040053,0.05292754,127.06,127.04,32.02]
[1741725042055,0.05292754,127.06,127.03,0.05224866]
[1741725042260,18.08476588,127.04,126.95,20.25206588]
[1741725042458,18.08476588,127.04,126.96,32.02]
[1741725042854,18.08476588,127.06,126.97,18.08476588]
[1741725043454,0.05601373,127.03,127.0,7.92801871]
[1741725043654,0.05601373,127.03,127.01,32.02]
[1741725044761,0.05601373,127.03,127.02,7.8749]
[1741725045162,4.0253,127.07,127.01,32.02]
[1741725045364,4.0253,127.07,127.03,7.874]
[1741725045661,4.0253,127.07,127.04,32.02]
[1741725046061,11.8977,127.07,127.04,32.02]
[1741725046254,11.95251212,127.07,127.04,32.07526834]
[1741725046656,4.08011212,127.07,127.04,32.07526834]
[1741725047558,0.05481212,127.07,127.05,7.8729]
[1741725047763,0.05481212,127.07,127.04,32.07526834]
[1741725049566,0.05481212,127.07,127.05,7.8727]
[1741725049861,0.05481212,127.07,127.04,32.07526834]
[1741725050059,0.05481212,127.07,127.04,39.94866834]
[1741725050260,0.05481212,127.07,127.04,32.07526834]
[1741725050666,0.05481212,127.07,127.05,7.8726]
[1741725051565,0.05481212,127.07,127.06,7.8725]
[1741725053968,0.05481212,127.07,127.04,32.07526834]
[1741725054373,0.05481212,127.07,127.05,18.08476588]
[1741725054675,3.9968,127.12,127.05,18.08476588]
[1741725054869,3.9968,127.12,127.04,32.02]
[1741725055065,22.08156588,127.12,127.04,39.8935]
[1741725055268,22.08156588,127.12,127.04,32.02]
[1741725055666,7.92746448,127.09,127.07,0.05275376]
[1741725055865,0.05686448,127.09,127.07,32.05275376]
[1741725056776,7.92776448,127.09,127.07,32.05275376]
[1741725057172,0.05686448,127.09,127.07,32.05275376]
[1741725058982,7.8712,127.08,127.07,32.05275376]
[1741725059177,7.8712,127.08,127.07,0.05275376]
[1741725059376,18.08476588,127.08,127.04,32.0]
[1741725059784,18.08476588,127.06,127.04,32.0]
[1741725059973,7.8731,127.05,127.04,32.0]
[1741725060783,0.0520675,127.06,127.04,32.0]
[1741725062180,0.0520675,127.06,127.04,39.8734]
[1741725062877,0.0520675,127.06,127.05,7.8731]
[1741725063685,2.0316,127.12,127.07,7.8715]
[1741725063887,2.0316,127.12,127.08,32.0]
[1741725064080,295.11336502,127.14,127.08,32.0]
[1741725064276,7.8691,127.12,127.08,32.0]
[1741725064890,0.05106462,127.11,127.09,0.05379126]
[1741725066288,7.92076462,127.11,127.09,0.05379126]
[1741725067491,7.87,127.1,127.09,0.05379126]
[1741725068279,7.8728,127.06,127.02,30.19176588]
[1741725068492,20.11596588,127.1,127.05,31.98]
[1741725068783,7.8724,127.07,127.05,31.98]
[1741725068983,1.9919,127.09,127.05,31.98]
[1741725069387,1.9919,127.09,127.06,0.05743583]
[1741725069388,0.05010165,127.08,127.06,0.05743583]
[1741725070087,7.8718,127.07,127.06,0.05743583]
[1741725071377,7.92160165,127.08,127.06,0.05743583]
[1741725071580,0.05010165,127.08,127.06,0.05743583]
[1741725071983,0.05010165,127.08,127.07,39.8518]
[1741725072484,0.05010165,127.08,127.07,31.98]
[1741725073181,0.05010165,127.08,127.07,39.8518]
[1741725073490,2.0258,127.13,127.07,31.98]
[1741725073888,7.8691,127.12,127.07,39.8516]
[1741725074091,2.0258,127.13,127.07,31.98]
[1741725074295,7.8705,127.1,127.07,31.98]
[1741725074492,2.0258,127.13,127.07,31.98]
[1741725074694,0.05933691,127.1,127.07,32.03341674]
[1741725075595,0.05933691,127.1,127.07,39.90521674]
[1741725076594,7.92963691,127.1,127.07,32.03341674]
[1741725076795,0.05933691,127.1,127.07,32.03341674]
[1741725076997,7.92963691,127.1,127.07,32.03341674]
[1741725077891,0.05933691,127.1,127.07,32.03341674]
[1741725079102,7.8712,127.08,127.07,32.03341674]
[1741725079495,7.8712,127.08,127.07,0.05341674]
[1741725080901,0.05933691,127.1,127.07,0.05341674]
[1741725081097,7.8709,127.09,127.07,0.05341674]
[1741725081498,0.05933691,127.1,127.07,0.05341674]
[1741725081693,7.8712,127.08,127.07,0.05341674]
[1741725081890,0.05933691,127.1,127.07,0.05341674]
[1741725082791,7.8712,127.08,127.07,0.05341674]
[1741725084102,7.8707,127.09,127.07,0.05341674]
[1741725084402,18.14410279,127.1,127.07,0.05341674]
[1741725085099,7.8712,127.08,127.07,1.674e-05]
[1741725085595,25.95596588,127.08,127.07,1.674e-05]
[1741725085802,18.08476588,127.08,127.01,31.96]
[1741725086099,18.08476588,127.06,127.01,31.96]
[1741725086703,20.13816588,127.06,127.01,31.96]
[1741725086901,0.05314052,127.05,127.02,0.05958687]
[1741725087301,7.8741,127.04,127.02,0.05958687]
[1741725087701,0.05314052,127.05,127.02,0.05958687]
[1741725088003,7.8743,127.03,127.02,0.05958687]
[1741725088504,7.92654052,127.05,127.02,0.05958687]
[1741725089303,0.05314052,127.05,127.02,0.05958687]
[1741725089910,0.05314052,127.05,127.03,7.8743]
[1741725090309,0.05314052,127.05,127.04,31.96]
[1741725090511,0.05314052,127.05,127.04,39.8337]
[1741725090806,0.05314052,127.05,127.04,31.96]
[1741725091612,7.8709,127.09,127.04,31.96]
[1741725091908,263.9357,127.1,127.04,31.96]
[1741725092208,7.8709,127.09,127.05,7.8725]
[1741725092410,263.9357,127.1,127.04,31.96]
[1741725092613,7.8721,127.07,127.04,39.8333]
[1741725092808,7.8721,127.07,127.06,0.05763754]
[1741725093109,0.05953469,127.08,127.06,0.05763754]
[1741725093313,7.93133469,127.08,127.06,0.05763754]
[1741725093609,0.05953469,127.08,127.06,0.05763754]
[1741725094016,7.93103469,127.08,127.06,0.05763754]
[1741725095517,0.05953469,127.08,127.07,31.96]
[1741725097711,7.93073469,127.08,127.07,31.96]
[1741725098108,0.05953469,127.08,127.06,0.05763754]
[1741725098311,0.05953469,127.08,127.01,31.96]
[1741725098312,18.14430057,127.08,127.01,31.96]
[1741725098611,18.08476588,127.08,127.01,31.96]
[1741725099004,7.8741,127.04,127.01,31.96]
[1741725099615,7.8749,127.03,127.01,32.01182704]
[1741725099919,0.05170023,127.04,127.01,0.05182704]
[1741725100516,0.05170023,127.04,127.02,7.8749]
[1741725100916,0.05170023,127.04,127.01,0.05182704]
[1741725101111,0.05170023,127.04,127.01,7.92702704]
[1741725101313,0.05170023,127.04,127.01,0.05182704]
[1741725103208,7.92540023,127.04,127.01,0.05182704]
[1741725103719,0.05170023,127.04,127.01,0.05182704]
[1741725104721,18.08476588,127.02,127.01,0.05182704]
[1741725105217,18.08476588,127.02,126.96,31.94]
[1741725105416,6.269,127.03,126.96,31.94]
[1741725105617,6.269,127.03,126.97,39.8176]
[1741725106117,0.05506538,127.01,126.97,39.8176]
[1741725106418,0.05506538,127.01,126.99,0.05354672]
[1741725111221,0.05506538,127.01,126.99,7.93034672]
[1741725111822,0.05506538,127.01,127.0,7.8762]
[1741725112023,0.05506538,127.01,127.0,31.94]
[1741725115227,0.05506538,127.01,126.99,0.05354672]
[1741725117435,0.05506538,127.01,126.99,7.93004672]
[1741725118538,0.05506538,127.01,126.99,0.05354672]
[1741725119231,7.93086538,127.01,126.99,0.05354672]
[1741725119638,0.05506538,127.01,126.99,0.05354672]
[1741725120837,0.05506538,127.01,126.99,7.92994672]
[1741725121437,0.05506538,127.01,127.0,7.8762]
[1741725121733,263.9715,127.07,126.99,0.05354672]
[1741725122133,7.8728,127.06,127.02,7.8746]
[1741725122735,263.9715,127.07,127.01,39.8151]
[1741725122935,0.05280236,127.05,127.03,0.05965744]
[1741725123734,7.8737,127.04,127.03,0.05965744]
[1741725124541,0.05280236,127.05,126.98,39.8172]
[1741725124737,7.8754,127.02,126.98,7.8772]
[1741725124930,7.8754,127.02,126.98,39.8172]
[1741725125130,50.02476588,127.06,126.98,31.94]
[1741725125734,7.93381188,127.03,127.01,0.05422776]
[1741725126232,0.05921188,127.03,127.01,0.05422776]
[1741725126435,7.93391188,127.03,127.01,0.05422776]
[1741725127346,0.05921188,127.03,127.01,0.05422776]
[1741725127643,7.8749,127.02,127.01,0.05422776]
[1741725127843,0.05921188,127.03,126.98,31.94]
[1741725128441,7.8758,127.01,126.98,31.94]
[1741725128942,7.8752,127.02,126.98,39.8173]
[1741725129147,0.05921188,127.03,126.98,31.99434911]
[1741725130139,7.8752,127.02,126.98,39.87154911]
[1741725130445,0.05921188,127.03,126.98,31.99434911]
[1741725131245,0.05921188,127.03,126.98,0.05434911]
[1741725131448,2.03961188,127.03,126.98,0.05434911]
[1741725131840,7.8767,127.0,126.98,0.05434911]
[1741725132040,1.9804,127.03,126.98,0.05434911]
[1741725132237,0.05653456,127.0,126.98,0.05434911]
[1741725132442,31.92,126.99,126.91,10.9051979]
[1741725132640,18.08476588,126.93,126.9,104.55834358]
[1741725132844,18.08476588,126.91,126.9,104.55834358]
[1741725133043,25.96656588,126.91,126.9,80.01864358]
[1741725133644,31.92,126.92,126.9,80.01864358]
[1741725133645,39.8545129,126.92,126.9,80.01864358]
[1741725133845,0.0532129,126.92,126.9,80.01864358]
[1741725134236,7.8818,126.91,126.9,80.01864358]
[1741725136245,7.8818,126.91,126.89,0.05805719]
[1741725137448,7.8824,126.9,126.89,0.05805719]
[1741725137647,25.96716588,126.9,126.89,0.05805719]
[1741725139946,0.0532129,126.92,126.89,0.05805719]
[1741725141853,18.13797878,126.92,126.89,0.05805719]
[1741725142652,7.8824,126.9,126.89,0.05805719]
[1741725143957,7.8821,126.91,126.89,0.05805719]
[1741725144555,18.13797878,126.92,126.89,0.05805719]
[1741725144758,0.0532129,126.92,126.89,0.05805719]
[1741725145056,7.8821,126.91,126.89,0.05805719]
[1741725148761,26.01927878,126.92,126.89,0.05805719]
[1741725151259,0.0532129,126.92,126.89,0.05805719]
[1741725151454,0.0532129,126.92,126.89,7.94095719]
[1741725152264,0.0532129,126.92,126.89,0.05805719]
[1741725152464,0.0532129,126.92,126.9,7.8823]
[1741725152659,0.0532129,126.92,126.89,31.99805719]
[1741725153167,0.0532129,126.92,126.89,39.88085719]
[1741725153467,0.0532129,126.92,126.89,31.99805719]
[1741725153665,0.0532129,126.92,126.9,7.8821]
[1741725153866,0.0532129,126.92,126.9,9.9795]
[1741725155864,7.8787,126.96,126.9,2.0974]
[1741725156165,18.08476588,126.98,126.9,20.18216588]
[1741725156371,7.8783,126.97,126.93,7.8802]
[1741725156562,259.88,126.99,126.93,31.92]
[1741725157064,0.05053598,126.97,126.95,7.93732415]
[1741725157265,18.08476588,127.02,126.96,31.92]
[1741725157465,7.8765,127.0,126.97,7.8779]
[1741725157670,7.8765,127.0,126.96,33.8923]
[1741725157975,50.00476588,127.04,126.97,7.8776]
[1741725158162,18.08476588,127.04,126.97,7.8776]
[1741725158463,0.05778417,127.02,126.99,0.05064668]
[1741725158769,7.93298417,127.02,126.99,31.97064668]
[1741725159165,7.8757,127.01,126.99,31.97064668]
[1741725159372,0.05778417,127.02,126.99,31.97064668]
[1741725159962,10.82071082,127.05,126.99,31.97064668]
[1741725160269,18.69421082,127.05,127.0,18.08476588]
[1741725160466,18.69421082,127.05,127.0,25.96046588]
[1741725160672,18.69421082,127.05,127.0,18.08476588]
[1741725161060,0.05617301,127.04,127.0,18.08476588]
[1741725161267,7.92987301,127.04,127.0,18.08476588]
[1741725161669,0.05617301,127.04,127.0,18.08476588]
[1741725161867,0.05617301,127.04,127.01,7.8755]
[1741725162070,0.05617301,127.04,127.02,33.9612]
[1741725162270,7.8734,127.05,127.02,33.9612]
[1741725162466,10.82071082,127.12,127.02,33.9612]
[1741725162467,242.00476588,127.1,127.02,33.9612]
[1741725162671,50.00476588,127.1,127.03,10.0369]
[1741725163072,7.8722,127.07,127.03,2.1627]
[1741725163270,18.08476588,127.1,127.04,7.8737]
[1741725163475,0.05034611,127.06,127.05,31.9]
[1741725163868,18.08476588,127.12,127.05,31.9]
[1741725164168,0.05443356,127.07,127.05,31.9]
[1741725164471,18.08476588,127.12,127.07,0.05661337]
[1741725165562,0.04065996,127.1,127.07,0.05661337]
[1741725165768,18.12542584,127.1,127.07,0.05661337]
[1741725166072,7.8712,127.08,127.07,0.05661337]
[1741725167772,25.95596588,127.08,127.07,0.05661337]
[1741725168072,7.874,127.04,127.02,33.9412]
[1741725168776,7.8743,127.03,127.02,2.0412]
[1741725168976,18.08476588,127.04,127.0,31.88]
[1741725169183,18.13501877,127.04,127.01,0.06048401]
[1741725169372,18.08476588,127.02,127.01,0.06048401]
[1741725169967,25.95966588,127.02,127.01,0.06048401]
[1741725170173,50.01501877,127.04,127.01,0.06048401]
[1741725170678,7.8749,127.02,127.01,0.06048401]
[1741725171577,7.8744,127.03,127.01,0.06048401]
[1741725171777,18.13501877,127.04,127.01,0.06048401]
[1741725172678,7.8749,127.02,127.01,0.06048401]
[1741725172974,18.13501877,127.04,127.01,0.06048401]
[1741725173181,7.8749,127.02,127.01,0.06048401]
[1741725173580,18.13501877,127.04,127.01,0.06048401]
[1741725173781,7.8746,127.03,127.01,0.06048401]
[1741725174678,7.92415289,127.04,127.01,0.06048401]
[1741725174879,0.05025289,127.04,127.01,0.06048401]
[1741725175281,7.8743,127.03,127.01,0.06048401]
[1741725176476,0.05025289,127.04,127.01,0.06048401]
[1741725177277,7.8746,127.03,127.01,0.06048401]
[1741725177482,0.05025289,127.04,127.01,0.06048401]
[1741725177980,18.13501877,127.04,127.01,0.06048401]
[1741725178180,18.08476588,127.02,127.01,8.401e-05]
[1741725178581,25.95966588,127.02,127.01,8.401e-05]
[1741725182086,7.8749,127.02,127.01,8.401e-05]
[1741725182476,7.8744,127.03,127.01,8.401e-05]
[1741725182884,7.92425289,127.04,127.01,8.401e-05]
[1741725183388,7.8749,127.02,127.01,8.401e-05]
[1741725184186,7.8746,127.03,127.01,8.401e-05]
[1741725184387,0.05025289,127.04,127.01,8.401e-05]
[1741725184592,7.8747,127.03,127.01,8.401e-05]
[1741725184783,0.05025289,127.04,127.01,8.401e-05]
[1741725185384,7.8746,127.03,127.01,8.401e-05]
[1741725185587,0.05025289,127.04,127.01,8.401e-05]
[1741725186186,7.92415289,127.04,127.01,8.401e-05]
[1741725186392,7.92415289,127.04,127.02,31.88]
[1741725187688,0.05025289,127.04,127.02,31.88]
[1741725188486,0.05025289,127.04,127.02,33.8517]
[1741725188687,7.92395289,127.04,127.02,33.8517]
[1741725189082,0.05025289,127.04,127.02,33.8517]
[1741725190594,0.05025289,127.04,127.02,31.88]
[1741725190990,7.8743,127.03,127.02,31.88]
[1741725193190,0.05025289,127.04,127.01,8.401e-05]
[1741725193498,18.13501877,127.04,127.01,8.401e-05]
[1741725195085,0.05025289,127.04,127.01,8.401e-05]
[1741725195785,7.92415289,127.04,127.01,8.401e-05]
[1741725196096,0.05025289,127.04,127.01,8.401e-05]
[1741725197098,7.92435289,127.04,127.01,8.401e-05]
[1741725197390,0.05025289,127.04,127.01,8.401e-05]
[1741725197595,0.05025289,127.04,127.01,31.86008401]
[1741725197789,0.05025289,127.04,127.02,7.8749]
[1741725197987,0.05025289,127.04,127.01,31.86008401]
[1741725198397,0.05025289,127.04,127.01,39.73528401]
[1741725200597,7.92395289,127.04,127.01,39.73528401]
[1741725200793,259.88,127.09,127.01,31.86008401]
[1741725200997,259.88,127.09,127.01,31.86]
[1741725201497,259.88,127.09,127.01,39.7352]
[1741725201700,18.08476588,127.08,127.01,31.86]
[1741725201997,0.05334147,127.06,127.03,0.05408615]
[1741725202195,7.8737,127.04,127.03,0.05408615]
[1741725203601,7.8733,127.05,127.03,0.05408615]
[1741725203803,0.05334147,127.06,127.03,0.05408615]
[1741725204103,7.8737,127.04,127.03,0.05408615]
[1741725207506,7.8734,127.05,127.03,0.05408615]
[1741725208206,0.05334147,127.06,127.03,0.05408615]
[1741725208406,7.92604147,127.06,127.03,0.05408615]
[1741725210204,7.8731,127.05,127.03,0.05408615]
[1741725211299,7.8737,127.04,127.03,0.05408615]
[1741725213607,0.05334147,127.06,127.03,0.05408615]
[1741725213805,7.8733,127.05,127.04,31.84]
[1741725216512,7.92614147,127.06,127.04,31.84]
[1741725218612,7.8731,127.05,127.04,31.84]
[1741725219812,7.8737,127.04,127.03,0.05408615]
[1741725220008,18.08476588,127.04,126.99,33.9556]
[1741725220213,11.57625234,127.02,126.99,31.82]
[1741725220813,11.57625234,127.02,126.97,2.0051]
[1741725221010,11.57625234,127.02,126.98,31.82]
[1741725221212,11.57625234,126.99,126.98,0.05325432]
[1741725221412,11.57625234,126.99,126.95,1.962]
[1741725221611,11.57625234,126.99,126.97,0.05434305]
[1741725222214,7.8774,126.98,126.97,0.05434305]
[1741725222620,26.02810167,127.0,126.97,0.05434305]
[1741725223016,18.15150167,127.0,126.97,0.05434305]
[1741725223217,7.8768,126.99,126.97,0.05434305]
[1741725224120,0.05418599,127.0,126.97,0.05434305]
[1741725225727,0.05418599,127.0,126.97,7.93194305]
[1741725226130,0.05418599,127.0,126.98,31.82]
[1741725226329,0.05418599,127.0,126.98,39.6971]
[1741725226817,0.05418599,127.0,126.98,31.82]
[1741725227525,0.05418599,127.0,126.98,39.697]
[1741725227830,0.05418599,127.0,126.98,41.8078]
[1741725228425,0.05418599,127.0,126.98,33.9308]
[1741725228629,0.05418599,127.0,126.98,31.82]
[1741725231530,0.05418599,127.0,126.98,39.697]
[1741725231723,0.05418599,127.0,126.98,31.82]
[1741725232229,0.05418599,127.0,126.98,39.6973]
[1741725232430,0.05418599,127.0,126.98,31.82]
[1741725233929,7.93048599,127.0,126.98,31.82]
[1741725234633,0.05418599,127.0,126.98,31.82]
[1741725235533,7.93048599,127.0,126.98,31.82]
[1741725238035,7.8768,126.99,126.98,31.82]
[1741725239834,7.8774,126.98,126.97,0.05434305]
[1741725243337,0.05418599,127.0,126.97,0.05434305]
[1741725243537,0.05418599,127.0,126.98,31.8]
[1741725243740,0.05418599,127.0,126.98,39.6771]
[1741725244241,7.8749,127.03,126.98,31.8]
[1741725244443,7.8749,127.03,126.98,33.9366]
[1741725244833,7.8754,127.02,126.98,41.8136]
[1741725245237,0.05984951,127.01,126.99,0.05314569]
[1741725245539,7.8761,127.01,126.99,0.05314569]
[1741725245739,0.05895293,127.01,126.99,0.05314569]
[1741725246943,10.82071082,127.07,126.99,18.15046137]
[1741725247143,10.82071082,127.07,126.99,18.09731568]
[1741725247339,7.874,127.04,126.99,18.09731568]
[1741725247543,10.82071082,127.07,126.98,33.9366]
[1741725247938,7.8748,127.03,126.99,7.8765]
[1741725248137,7.8748,127.03,126.98,33.9366]
[1741725248138,0.04836768,127.04,127.01,0.05105258]
[1741725248640,7.8749,127.02,127.01,0.05105258]
[1741725249840,0.04836768,127.04,127.01,0.05105258]
[1741725250038,7.8746,127.03,127.01,0.05105258]
[1741725250440,7.8749,127.02,127.01,0.05105258]
[1741725251540,7.8784,126.97,126.95,31.78]
[1741725251733,18.09731568,127.02,126.92,4.0253]
[1741725251734,18.09731568,127.0,126.92,4.0253]
[1741725252133,7.8798,126.95,126.92,35.8053]
[1741725252345,18.09731568,126.98,126.92,35.8053]
[1741725252843,7.93490785,126.96,126.94,0.05913949]
[1741725253642,0.05590785,126.96,126.94,0.05913949]
[1741725254739,7.8793,126.95,126.94,0.05913949]
[1741725255543,0.05590785,126.96,126.94,0.05913949]
[1741725255735,7.93490785,126.96,126.94,0.05913949]
[1741725255938,0.05590785,126.96,126.94,0.05913949]
[1741725256846,7.93480785,126.96,126.94,0.05913949]
[1741725257040,0.05590785,126.96,126.94,0.05913949]
[1741725259342,0.05590785,126.96,126.94,7.93873949]
[1741725259548,0.05590785,126.96,126.94,0.05913949]
[1741725259750,0.05590785,126.96,126.95,31.78]
[1741725260844,0.05590785,126.96,126.95,39.6593]
[1741725261047,259.9,127.01,126.95,31.78]
[1741725261441,259.9,127.01,126.97,7.8777]
[1741725261646,267.7758,127.01,126.97,7.8777]
[1741725262247,0.04351241,127.0,126.98,0.05212883]
[1741725263350,7.91981241,127.0,126.98,0.05212883]
[1741725264043,7.8768,126.99,126.98,0.05212883]
[1741725271153,7.91991241,127.0,126.98,0.05212883]
[1741725271355,0.04351241,127.0,126.98,0.05212883]
[1741725272644,0.04351241,127.0,126.98,2.14282883]
[1741725273257,0.04351241,127.0,126.99,7.8768]
[1741725273454,7.8746,127.03,126.99,7.8768]
[1741725273855,92.16437405,127.06,126.99,7.8768]
[1741725274055,7.875,127.02,126.99,7.8768]
[1741725274744,7.875,127.02,126.99,0.05392916]
[1741725274947,7.8757,127.01,126.99,0.05392916]
[1741725277951,7.8762,127.0,126.99,0.05392916]
[1741725278958,25.97351568,127.0,126.99,2.916e-05]
[1741725283157,20.45731568,127.0,126.9,31.76]
[1741725283369,18.09731568,126.96,126.9,31.76]
[1741725284164,18.09731568,126.96,126.92,0.0508872]
[1741725284165,0.05030178,126.94,126.92,0.0508872]
[1741725287966,7.8805,126.93,126.92,0.0508872]
[1741725288570,7.93050178,126.94,126.92,0.0508872]
[1741725288970,0.05030178,126.94,126.92,0.0508872]
[1741725292867,7.93030178,126.94,126.92,0.0508872]
[1741725294272,0.05030178,126.94,126.92,0.0508872]
[1741725295973,7.93020178,126.94,126.92,0.0508872]
[1741725297071,0.05030178,126.94,126.92,0.0508872]
[1741725300070,0.05030178,126.94,126.92,7.9315872]
[1741725300374,0.05030178,126.94,126.92,0.0508872]
[1741725300764,0.05030178,126.94,126.92,7.9316872]
[1741725300969,0.05030178,126.94,126.93,31.74]
[1741725301170,7.8775,126.98,126.93,45.4729149]
[1741725301674,7.8775,126.98,126.95,7.8792]
[1741725301871,279.4058149,126.99,126.95,19.4680149]
[1741725302369,279.4058149,126.99,126.96,0.05449482]
[1741725302571,19.4658149,126.99,126.96,39.67309482]
[1741725302771,7.8764,127.0,126.96,31.79449482]
[1741725302967,7.8764,127.0,126.96,31.74]
[1741725303168,7.8764,127.0,126.97,0.05363014]
[1741725303373,11.5888149,127.01,126.97,0.05363014]
[1741725303768,308.9910036,127.05,126.97,0.05363014]
[1741725303971,11.5888149,127.01,126.96,43.3288149]
[1741725304174,11.5888149,127.01,127.0,0.05193535]
[1741725304474,7.8762,127.0,126.99,0.05610104]
[1741725311079,7.8746,127.03,126.99,39.65280104]
[1741725311383,11.5888149,127.07,127.02,11.5888149]
[1741725311584,11.5888149,127.07,127.02,43.3088149]
[1741725311782,11.5888149,127.07,127.03,0.05985988]
[1741725312181,7.8728,127.06,127.03,0.05985988]
[1741725312376,43.06596013,127.09,127.03,11.64867478]
[1741725312884,7.8716,127.08,127.03,19.52267478]
[1741725313786,11.5888149,127.08,127.03,11.64867478]
[1741725314588,19.4603149,127.08,127.03,11.64867478]
[1741725314789,271.5688149,127.1,127.03,11.64867478]
[1741725314981,279.4390149,127.1,127.05,11.5888149]
[1741725315179,7.8702,127.1,127.06,31.7]
[1741725315380,7.8702,127.1,127.06,33.7678341]
[1741725315982,10.82071082,127.13,127.09,11.5888149]
[1741725316288,10.82071082,127.13,127.09,51.1593149]
[1741725316488,10.82071082,127.13,127.1,0.0545941]
[1741725316989,7.868,127.14,127.1,2.1287941]
[1741725317185,22.40952572,127.16,127.1,2.1287941]
[1741725317393,22.40952572,127.16,127.11,11.5888149]
[1741725317686,22.40952572,127.16,127.12,31.7]